[Event "*** SCC Grand Prix: Titled Tuesday Blitz"]
[Site "Chess.com"]
[Date "2020.06.09"]
[Round "9"]
[White "ecwinslow"]
[Black "KaterinaMiroshnik"]
[Result "0-1"]
[WhiteElo "2262"]
[BlackElo "2433"]
[TimeControl "180+1"]
[EndTime "10:42:59 PDT"]
[Termination "KaterinaMiroshnik won by resignation"]

1. e4 {[%clk 0:03:00.9]} 1... e6 {[%clk 0:02:59]} 2. d4 {[%clk 0:03:00]} 2... d5
{[%clk 0:02:59.3]} 3. Nd2 {[%clk 0:03:00.6]} 3... Nf6 {[%clk 0:02:59.5]} 4. e5
{[%clk 0:03:00.2]} 4... Nfd7 {[%clk 0:02:59.8]} 5. Bd3 {[%clk 0:03:00.2]} 5...
c5 {[%clk 0:03:00.7]} 6. c3 {[%clk 0:03:00.6]} 6... Nc6 {[%clk 0:03:01.6]} 7.
Ne2 {[%clk 0:03:00.5]} 7... cxd4 {[%clk 0:03:02.5]} 8. cxd4 {[%clk 0:03:00.6]}
8... f6 {[%clk 0:03:03.4]} 9. exf6 {[%clk 0:03:00.6]} 9... Nxf6 {[%clk
0:03:04.3]} 10. O-O {[%clk 0:02:59.1]} 10... Bd6 {[%clk 0:03:05.2]} 11. Nf3
{[%clk 0:02:58.8]} 11... O-O {[%clk 0:03:05.7]} 12. Bf4 {[%clk 0:02:58.3]} 12...
Bxf4 {[%clk 0:03:05.8]} 13. Nxf4 {[%clk 0:02:57.9]} 13... Ne4 {[%clk 0:03:06.7]}
14. Ne2 {[%clk 0:02:54.7]} 14... Kh8 {[%clk 0:02:39.2]} 15. Ne5 {[%clk
0:02:27.4]} 15... Nxe5 {[%clk 0:02:34]} 16. Bxe4 {[%clk 0:02:18.8]} 16... Ng4
{[%clk 0:02:30.6]} 17. Bf3 {[%clk 0:02:04]} 17... e5 {[%clk 0:02:09.2]} 18. Bxg4
{[%clk 0:01:50.5]} 18... Bxg4 {[%clk 0:02:08.1]} 19. dxe5 {[%clk 0:01:50.3]}
19... Qg5 {[%clk 0:02:06.8]} 20. f3 {[%clk 0:01:38.9]} 20... Bxf3 {[%clk
0:01:51.2]} 21. Ng3 {[%clk 0:01:27.2]} 21... Bxd1 {[%clk 0:01:47.9]} 0-1

[Event "*** SCC Grand Prix: Titled Tuesday Blitz"]
[Site "Chess.com"]
[Date "2020.06.09"]
[Round "9"]
[White "JoachimMouhamad"]
[Black "iaraldinho"]
[Result "1-0"]
[WhiteElo "2486"]
[BlackElo "2614"]
[TimeControl "180+1"]
[EndTime "10:43:28 PDT"]
[Termination "JoachimMouhamad won by resignation"]

1. e4 {[%clk 0:03:00.9]} 1... c5 {[%clk 0:02:59.8]} 2. Nf3 {[%clk 0:03:00.2]}
2... a6 {[%clk 0:03:00.2]} 3. c3 {[%clk 0:02:51.9]} 3... d5 {[%clk 0:02:59.7]}
4. exd5 {[%clk 0:02:49.7]} 4... Qxd5 {[%clk 0:03:00.6]} 5. d4 {[%clk 0:02:47.5]}
5... cxd4 {[%clk 0:03:01.5]} 6. cxd4 {[%clk 0:02:46.8]} 6... Nf6 {[%clk
0:03:01.9]} 7. Nc3 {[%clk 0:02:45.3]} 7... Qd6 {[%clk 0:03:02.3]} 8. Bg5 {[%clk
0:02:21.8]} 8... Bg4 {[%clk 0:02:57.8]} 9. Be2 {[%clk 0:02:14]} 9... Nc6 {[%clk
0:02:57.1]} 10. d5 {[%clk 0:02:08.4]} 10... Ne5 {[%clk 0:02:56.9]} 11. O-O
{[%clk 0:02:00.8]} 11... Nxf3+ {[%clk 0:02:35.9]} 12. Bxf3 {[%clk 0:01:59]}
12... Bd7 {[%clk 0:02:35.7]} 13. Re1 {[%clk 0:01:45.9]} 13... h6 {[%clk
0:02:25.2]} 14. Bh4 {[%clk 0:01:40.8]} 14... g5 {[%clk 0:02:23.2]} 15. Bg3
{[%clk 0:01:40.2]} 15... Qb4 {[%clk 0:02:22.8]} 16. d6 {[%clk 0:01:36.2]} 16...
e6 {[%clk 0:02:22.4]} 17. Be5 {[%clk 0:01:25.1]} 17... Bg7 {[%clk 0:02:21.5]}
18. Bxf6 {[%clk 0:01:24.9]} 18... Bxf6 {[%clk 0:02:21.3]} 19. Nd5 {[%clk
0:01:24.9]} 19... Qxd6 {[%clk 0:01:24.6]} 20. Nxf6+ {[%clk 0:01:22.3]} 20... Ke7
{[%clk 0:01:25.5]} 21. Qxd6+ {[%clk 0:01:18.2]} 21... Kxd6 {[%clk 0:01:26.4]}
22. Red1+ {[%clk 0:01:15.9]} 1-0

[Event "*** SCC Grand Prix: Titled Tuesday Blitz"]
[Site "Chess.com"]
[Date "2020.06.09"]
[Round "9"]
[White "GMKrikor"]
[Black "vinniethepooh"]
[Result "1-0"]
[WhiteElo "2725"]
[BlackElo "2556"]
[TimeControl "180+1"]
[EndTime "10:43:58 PDT"]
[Termination "GMKrikor won by resignation"]

1. e4 {[%clk 0:03:00.9]} 1... c5 {[%clk 0:02:59.5]} 2. Nf3 {[%clk 0:03:00.8]}
2... d6 {[%clk 0:03:00]} 3. d4 {[%clk 0:03:00.8]} 3... cxd4 {[%clk 0:03:00.9]}
4. Nxd4 {[%clk 0:03:01.6]} 4... Nf6 {[%clk 0:03:01.3]} 5. Nc3 {[%clk 0:03:02.3]}
5... a6 {[%clk 0:03:01.8]} 6. Be3 {[%clk 0:03:02.6]} 6... e5 {[%clk 0:02:59.1]}
7. Nb3 {[%clk 0:03:02.4]} 7... Be7 {[%clk 0:02:58]} 8. f3 {[%clk 0:03:01.7]}
8... O-O {[%clk 0:02:58.2]} 9. Qd2 {[%clk 0:03:00.3]} 9... Be6 {[%clk
0:02:58.4]} 10. O-O-O {[%clk 0:02:59.3]} 10... Nbd7 {[%clk 0:02:58.6]} 11. g4
{[%clk 0:02:59]} 11... b5 {[%clk 0:02:58.8]} 12. a3 {[%clk 0:02:59.5]} 12... Nb6
{[%clk 0:02:43.9]} 13. g5 {[%clk 0:02:53.2]} 13... Nfd7 {[%clk 0:02:42.8]} 14.
Na5 {[%clk 0:02:36.5]} 14... Qc7 {[%clk 0:02:34.9]} 15. Nd5 {[%clk 0:02:05.9]}
15... Nxd5 {[%clk 0:02:29.8]} 16. exd5 {[%clk 0:02:06.8]} 16... Bf5 {[%clk
0:02:29.7]} 17. Nc6 {[%clk 0:02:05.2]} 17... Bd8 {[%clk 0:02:29.1]} 18. Bd3
{[%clk 0:02:01.1]} 18... Bxd3 {[%clk 0:02:23.4]} 19. Qxd3 {[%clk 0:02:01.1]}
19... Nb8 {[%clk 0:02:22.8]} 20. Nxd8 {[%clk 0:01:28.4]} 20... Rxd8 {[%clk
0:02:21]} 21. h4 {[%clk 0:01:29]} 21... Rc8 {[%clk 0:02:10.5]} 22. f4 {[%clk
0:01:28.2]} 22... exf4 {[%clk 0:02:01.6]} 23. Bxf4 {[%clk 0:01:28.1]} 23... Nd7
{[%clk 0:02:02.2]} 24. Kb1 {[%clk 0:01:23.5]} 24... Ne5 {[%clk 0:01:55.7]} 25.
Bxe5 {[%clk 0:01:22.9]} 25... dxe5 {[%clk 0:01:56.6]} 26. d6 {[%clk 0:01:23.5]}
26... Qd7 {[%clk 0:01:50.1]} 27. h5 {[%clk 0:01:23.6]} 27... Rc5 {[%clk
0:01:46.6]} 28. h6 {[%clk 0:01:16.4]} 28... Rac8 {[%clk 0:01:42.6]} 29. hxg7
{[%clk 0:01:14.7]} 29... e4 {[%clk 0:01:34.4]} 30. Qxe4 {[%clk 0:01:09.1]} 30...
Rf5 {[%clk 0:01:33.1]} 31. Qh4 {[%clk 0:01:04.9]} 1-0

[Event "*** SCC Grand Prix: Titled Tuesday Blitz"]
[Site "Chess.com"]
[Date "2020.06.09"]
[Round "9"]
[White "Thipsay"]
[Black "vitnik2020"]
[Result "0-1"]
[WhiteElo "2422"]
[BlackElo "2326"]
[TimeControl "180+1"]
[EndTime "10:44:04 PDT"]
[Termination "vitnik2020 won by resignation"]

1. e4 {[%clk 0:03:00.9]} 1... e5 {[%clk 0:02:59.2]} 2. Nf3 {[%clk 0:03:00.8]}
2... Nc6 {[%clk 0:02:58.8]} 3. Bb5 {[%clk 0:03:00.8]} 3... a6 {[%clk 0:02:58.4]}
4. Ba4 {[%clk 0:03:00.6]} 4... Nf6 {[%clk 0:02:58]} 5. O-O {[%clk 0:03:00.5]}
5... Be7 {[%clk 0:02:56.6]} 6. Re1 {[%clk 0:03:00.7]} 6... d6 {[%clk 0:02:56.3]}
7. Bxc6+ {[%clk 0:02:57.9]} 7... bxc6 {[%clk 0:02:55.6]} 8. d4 {[%clk 0:02:58]}
8... Nd7 {[%clk 0:02:54.5]} 9. dxe5 {[%clk 0:02:53.5]} 9... dxe5 {[%clk
0:02:53.6]} 10. Nxe5 {[%clk 0:02:53.3]} 10... Nxe5 {[%clk 0:02:51.3]} 11. Qe2
{[%clk 0:02:48.8]} 11... Bg4 {[%clk 0:02:40.4]} 12. f3 {[%clk 0:02:48]} 12...
Be6 {[%clk 0:02:38.7]} 13. f4 {[%clk 0:02:45.1]} 13... Ng4 {[%clk 0:02:21.3]}
14. Be3 {[%clk 0:02:25.3]} 14... Nxe3 {[%clk 0:02:13.5]} 15. Qxe3 {[%clk
0:02:25]} 15... f6 {[%clk 0:02:12.9]} 16. Nc3 {[%clk 0:02:16.7]} 16... O-O
{[%clk 0:02:10.8]} 17. Rad1 {[%clk 0:02:14]} 17... Qb8 {[%clk 0:02:08.9]} 18.
Na4 {[%clk 0:02:01]} 18... Qb4 {[%clk 0:01:53.1]} 19. b3 {[%clk 0:01:59.4]}
19... Rfd8 {[%clk 0:01:52.1]} 20. h3 {[%clk 0:01:52.5]} 20... Qa3 {[%clk
0:01:35.5]} 21. Kh2 {[%clk 0:01:41.7]} 21... Qxa2 {[%clk 0:01:34]} 22. Nc5
{[%clk 0:01:37.1]} 22... Bf7 {[%clk 0:01:24.6]} 23. e5 {[%clk 0:01:19.5]} 23...
fxe5 {[%clk 0:01:22.7]} 24. fxe5 {[%clk 0:01:18.9]} 24... Qxc2 {[%clk
0:01:20.6]} 25. Rc1 {[%clk 0:01:18]} 25... Bxc5 {[%clk 0:01:15.7]} 26. Rxc2
{[%clk 0:01:11.8]} 26... Bxe3 {[%clk 0:01:15]} 27. Rxe3 {[%clk 0:01:12.1]} 27...
Bd5 {[%clk 0:01:14.3]} 0-1

[Event "*** SCC Grand Prix: Titled Tuesday Blitz"]
[Site "Chess.com"]
[Date "2020.06.09"]
[Round "9"]
[White "bratkoo"]
[Black "Maksimus1998"]
[Result "1-0"]
[WhiteElo "2342"]
[BlackElo "2490"]
[TimeControl "180+1"]
[EndTime "10:44:09 PDT"]
[Termination "bratkoo won by checkmate"]

1. e4 {[%clk 0:03:00.9]} 1... c5 {[%clk 0:02:59.6]} 2. Nf3 {[%clk 0:02:57.2]}
2... g6 {[%clk 0:02:59.4]} 3. d4 {[%clk 0:02:55.8]} 3... cxd4 {[%clk 0:02:59.6]}
4. Nxd4 {[%clk 0:02:56.7]} 4... Bg7 {[%clk 0:02:59.9]} 5. Nc3 {[%clk 0:02:56.8]}
5... Nc6 {[%clk 0:03:00]} 6. Be3 {[%clk 0:02:57]} 6... Nf6 {[%clk 0:02:58.7]} 7.
Bc4 {[%clk 0:02:53.4]} 7... O-O {[%clk 0:02:58.4]} 8. Bb3 {[%clk 0:02:52.6]}
8... Qa5 {[%clk 0:02:58.1]} 9. f3 {[%clk 0:02:48.4]} 9... Rd8 {[%clk 0:02:47.3]}
10. Qd2 {[%clk 0:02:44.2]} 10... d6 {[%clk 0:02:36.1]} 11. h4 {[%clk 0:02:40.3]}
11... Bd7 {[%clk 0:02:35.2]} 12. h5 {[%clk 0:02:38.9]} 12... Nxh5 {[%clk
0:02:34.7]} 13. g4 {[%clk 0:02:38.7]} 13... Nxd4 {[%clk 0:02:24.3]} 14. Bxd4
{[%clk 0:02:36.4]} 14... Bxd4 {[%clk 0:02:23.7]} 15. Qxd4 {[%clk 0:02:29.1]}
15... Nf6 {[%clk 0:02:22.8]} 16. O-O-O {[%clk 0:02:23.9]} 16... Be6 {[%clk
0:02:18.5]} 17. Bxe6 {[%clk 0:02:00.4]} 17... fxe6 {[%clk 0:02:19.4]} 18. f4
{[%clk 0:02:00.7]} 18... e5 {[%clk 0:02:12.6]} 19. Qc4+ {[%clk 0:01:58]} 19...
Kg7 {[%clk 0:02:02.4]} 20. g5 {[%clk 0:01:58.1]} 20... Nh5 {[%clk 0:01:58.9]}
21. f5 {[%clk 0:01:51.4]} 21... Rac8 {[%clk 0:01:51]} 22. Qe6 {[%clk 0:01:46.5]}
22... Qc7 {[%clk 0:01:50.3]} 23. Rxh5 {[%clk 0:01:41.4]} 23... gxh5 {[%clk
0:01:50]} 24. Qh6+ {[%clk 0:01:41.5]} 24... Kg8 {[%clk 0:01:49.7]} 25. g6 {[%clk
0:01:41.7]} 25... hxg6 {[%clk 0:01:46]} 26. Qxg6+ {[%clk 0:01:35]} 26... Kf8
{[%clk 0:01:45.1]} 27. Rg1 {[%clk 0:01:35.5]} 27... Qc4 {[%clk 0:01:42.4]} 28.
Qxh5 {[%clk 0:01:24]} 28... e6 {[%clk 0:01:06.4]} 29. Qh8+ {[%clk 0:01:18.4]}
29... Ke7 {[%clk 0:01:06.3]} 30. Rg7+ {[%clk 0:01:15.6]} 30... Kf6 {[%clk
0:01:05.8]} 31. Qh6# {[%clk 0:01:15.6]} 1-0

[Event "*** SCC Grand Prix: Titled Tuesday Blitz"]
[Site "Chess.com"]
[Date "2020.06.09"]
[Round "9"]
[White "MYMChessAcademy"]
[Black "CzechmVIII"]
[Result "0-1"]
[WhiteElo "2358"]
[BlackElo "2195"]
[TimeControl "180+1"]
[EndTime "10:44:22 PDT"]
[Termination "CzechmVIII won by resignation"]

1. e4 {[%clk 0:03:00.9]} 1... c5 {[%clk 0:03:00]} 2. Ne2 {[%clk 0:03:00.8]} 2...
Nf6 {[%clk 0:02:57.7]} 3. Nbc3 {[%clk 0:03:01.2]} 3... d6 {[%clk 0:02:53.6]} 4.
g3 {[%clk 0:03:00.8]} 4... Nc6 {[%clk 0:02:49.3]} 5. Bg2 {[%clk 0:03:01.1]} 5...
g6 {[%clk 0:02:49.7]} 6. O-O {[%clk 0:03:01.4]} 6... Bg7 {[%clk 0:02:49.2]} 7.
d3 {[%clk 0:03:02.3]} 7... O-O {[%clk 0:02:48.5]} 8. h3 {[%clk 0:03:03.2]} 8...
Rb8 {[%clk 0:02:47.3]} 9. f4 {[%clk 0:03:03.5]} 9... Nd7 {[%clk 0:02:43.7]} 10.
f5 {[%clk 0:03:01]} 10... Nde5 {[%clk 0:02:39.4]} 11. g4 {[%clk 0:02:59.9]}
11... b5 {[%clk 0:02:33.1]} 12. Ng3 {[%clk 0:02:55.1]} 12... b4 {[%clk
0:02:31.2]} 13. Nce2 {[%clk 0:02:54.3]} 13... a5 {[%clk 0:02:28.6]} 14. Nf4
{[%clk 0:02:54.4]} 14... a4 {[%clk 0:02:25.5]} 15. Rb1 {[%clk 0:02:54.8]} 15...
b3 {[%clk 0:02:18.5]} 16. axb3 {[%clk 0:02:55.7]} 16... axb3 {[%clk 0:02:18.7]}
17. c3 {[%clk 0:02:56.2]} 17... Ba6 {[%clk 0:02:10.1]} 18. g5 {[%clk 0:02:54.9]}
18... h6 {[%clk 0:01:10]} 19. gxh6 {[%clk 0:02:41.6]} 19... Bxh6 {[%clk
0:01:09.7]} 20. Ne6 {[%clk 0:02:36.9]} 20... fxe6 {[%clk 0:01:05.7]} 21. Bxh6
{[%clk 0:02:36.3]} 21... Bxd3 {[%clk 0:01:05.3]} 22. fxg6 {[%clk 0:02:21.6]}
22... Rxf1+ {[%clk 0:00:54]} 23. Bxf1 {[%clk 0:02:20.7]} 23... Bxb1 {[%clk
0:00:53.7]} 24. Qh5 {[%clk 0:02:20.3]} 24... Qe8 {[%clk 0:00:29.8]} 25. Bc4
{[%clk 0:01:57.6]} 25... Qxg6 {[%clk 0:00:24]} 26. Bxe6+ {[%clk 0:01:36.3]}
26... Qxe6 {[%clk 0:00:24]} 27. Nf5 {[%clk 0:01:36.1]} 27... Qg6+ {[%clk
0:00:21.5]} 0-1

[Event "*** SCC Grand Prix: Titled Tuesday Blitz"]
[Site "Chess.com"]
[Date "2020.06.09"]
[Round "9"]
[White "Ginger_GM"]
[Black "Ekka83"]
[Result "1-0"]
[WhiteElo "2567"]
[BlackElo "2390"]
[TimeControl "180+1"]
[EndTime "10:44:38 PDT"]
[Termination "Ginger_GM won by resignation"]

1. e4 {[%clk 0:03:00.9]} 1... d5 {[%clk 0:02:59]} 2. exd5 {[%clk 0:02:58.2]}
2... Qxd5 {[%clk 0:02:59.9]} 3. Nc3 {[%clk 0:02:57.7]} 3... Qa5 {[%clk 0:03:00]}
4. Bc4 {[%clk 0:02:57.3]} 4... Nf6 {[%clk 0:02:59.3]} 5. d3 {[%clk 0:02:57]}
5... c6 {[%clk 0:02:59.5]} 6. Bd2 {[%clk 0:02:56.9]} 6... Qd8 {[%clk 0:02:59.3]}
7. Nf3 {[%clk 0:02:55.8]} 7... Bf5 {[%clk 0:02:58.8]} 8. Ne5 {[%clk 0:02:53.4]}
8... e6 {[%clk 0:02:58.3]} 9. Qf3 {[%clk 0:02:52.1]} 9... Nbd7 {[%clk
0:02:54.4]} 10. Nxf7 {[%clk 0:02:51.9]} 10... Kxf7 {[%clk 0:02:40.8]} 11. Qxf5
{[%clk 0:02:50.6]} 11... Qe8 {[%clk 0:02:34.4]} 12. Ne4 {[%clk 0:02:43.1]} 12...
g6 {[%clk 0:02:27.8]} 13. Ng5+ {[%clk 0:02:22.6]} 13... Kg7 {[%clk 0:02:09.2]}
14. Nxe6+ {[%clk 0:02:20.8]} 14... Qxe6+ {[%clk 0:02:09.4]} 15. Qxe6 {[%clk
0:02:19.1]} 15... Re8 {[%clk 0:02:10]} 16. Qxe8 {[%clk 0:02:15.4]} 16... Nxe8
{[%clk 0:02:10.9]} 17. Bc3+ {[%clk 0:02:15.1]} 17... Nef6 {[%clk 0:02:10.1]} 18.
O-O-O {[%clk 0:02:12.8]} 18... b5 {[%clk 0:02:08.9]} 19. Be6 {[%clk 0:02:12.2]}
19... b4 {[%clk 0:02:07.8]} 20. Bd2 {[%clk 0:01:52.6]} 20... Nc5 {[%clk
0:02:05.2]} 21. Bc4 {[%clk 0:01:49.9]} 21... a5 {[%clk 0:02:05.2]} 22. Rde1
{[%clk 0:01:48.8]} 22... Bd6 {[%clk 0:02:04.4]} 23. Be3 {[%clk 0:01:46.1]} 23...
Rf8 {[%clk 0:02:00.1]} 24. f3 {[%clk 0:01:42.6]} 24... Ncd7 {[%clk 0:01:50.3]}
25. g3 {[%clk 0:01:26.8]} 25... Ne5 {[%clk 0:01:47]} 26. Bf4 {[%clk 0:01:22.1]}
26... Nxc4 {[%clk 0:01:45.3]} 27. dxc4 {[%clk 0:01:21.8]} 27... Bxf4+ {[%clk
0:01:45.6]} 28. gxf4 {[%clk 0:01:20.1]} 28... Nh5 {[%clk 0:01:46.2]} 29. Re7+
{[%clk 0:01:19.5]} 29... Kh6 {[%clk 0:01:46.5]} 30. Re4 {[%clk 0:01:18.3]} 30...
Nxf4 {[%clk 0:01:45.9]} 31. Kd2 {[%clk 0:01:13.2]} 31... Rf5 {[%clk 0:01:44.6]}
32. Ke3 {[%clk 0:01:13.2]} 32... Ng2+ {[%clk 0:01:44.4]} 33. Kf2 {[%clk
0:01:13.4]} 33... Nf4 {[%clk 0:01:44.4]} 34. h4 {[%clk 0:01:09.8]} 34... c5
{[%clk 0:01:36.4]} 35. Rhe1 {[%clk 0:01:08.2]} 35... Nh5 {[%clk 0:01:24.6]} 36.
Re5 {[%clk 0:01:05.6]} 36... Rf4 {[%clk 0:01:23.6]} 37. R1e4 {[%clk 0:01:05.7]}
37... Rxe4 {[%clk 0:01:18.4]} 38. fxe4 {[%clk 0:00:59.1]} 38... Nf6 {[%clk
0:01:18.1]} 39. Kf3 {[%clk 0:00:58.4]} 1-0

[Event "*** SCC Grand Prix: Titled Tuesday Blitz"]
[Site "Chess.com"]
[Date "2020.06.09"]
[Round "9"]
[White "RusPakhom"]
[Black "PrinceMurad09"]
[Result "1-0"]
[WhiteElo "2418"]
[BlackElo "2503"]
[TimeControl "180+1"]
[EndTime "10:44:40 PDT"]
[Termination "RusPakhom won by resignation"]

1. e4 {[%clk 0:03:00.9]} 1... c5 {[%clk 0:03:00.2]} 2. c3 {[%clk 0:02:59.9]}
2... Nf6 {[%clk 0:02:58.9]} 3. e5 {[%clk 0:02:59.8]} 3... Nd5 {[%clk 0:02:59.5]}
4. d4 {[%clk 0:03:00.4]} 4... cxd4 {[%clk 0:02:58.7]} 5. Nf3 {[%clk 0:03:00.8]}
5... d6 {[%clk 0:02:58]} 6. Bc4 {[%clk 0:03:00.7]} 6... dxe5 {[%clk 0:02:53]} 7.
Nxe5 {[%clk 0:02:56.2]} 7... e6 {[%clk 0:02:52]} 8. cxd4 {[%clk 0:02:45.3]} 8...
Be7 {[%clk 0:02:50.4]} 9. O-O {[%clk 0:02:44.7]} 9... O-O {[%clk 0:02:50.1]} 10.
Nc3 {[%clk 0:02:45]} 10... Nf6 {[%clk 0:02:44.6]} 11. Re1 {[%clk 0:02:41.1]}
11... a6 {[%clk 0:02:41.3]} 12. a4 {[%clk 0:02:39.6]} 12... Bd7 {[%clk
0:02:26.3]} 13. d5 {[%clk 0:02:27.3]} 13... exd5 {[%clk 0:02:20.3]} 14. Nxd5
{[%clk 0:02:27.1]} 14... Nc6 {[%clk 0:01:21.3]} 15. Nxf6+ {[%clk 0:02:14.6]}
15... Bxf6 {[%clk 0:01:16.6]} 16. Nxd7 {[%clk 0:02:14.9]} 16... Re8 {[%clk
0:00:59.6]} 17. Rxe8+ {[%clk 0:02:11.6]} 17... Qxe8 {[%clk 0:01:00.5]} 18. Nxf6+
{[%clk 0:02:11.6]} 18... gxf6 {[%clk 0:01:01.4]} 19. Bf4 {[%clk 0:01:36.8]}
19... Ne5 {[%clk 0:00:51.4]} 20. Bxe5 {[%clk 0:01:34.4]} 20... Qxe5 {[%clk
0:00:52.3]} 21. Qd5 {[%clk 0:01:28.5]} 21... Qxb2 {[%clk 0:00:47.6]} 22. Qxf7+
{[%clk 0:01:24.4]} 22... Kh8 {[%clk 0:00:48.2]} 23. Re1 {[%clk 0:01:24.7]} 23...
Qc3 {[%clk 0:00:43.6]} 24. Re8+ {[%clk 0:01:21.7]} 24... Rxe8 {[%clk 0:00:43.7]}
25. Qxe8+ {[%clk 0:01:22.2]} 25... Kg7 {[%clk 0:00:44.6]} 26. Qf7+ {[%clk
0:01:19.7]} 26... Kh6 {[%clk 0:00:45.1]} 27. g3 {[%clk 0:01:13.5]} 27... Qe1+
{[%clk 0:00:45.1]} 28. Bf1 {[%clk 0:01:13.2]} 28... Qe5 {[%clk 0:00:44.9]} 29.
Qxb7 {[%clk 0:01:11.7]} 1-0

[Event "*** SCC Grand Prix: Titled Tuesday Blitz"]
[Site "Chess.com"]
[Date "2020.06.09"]
[Round "9"]
[White "Quiet_Desperation"]
[Black "CrazyMartian"]
[Result "1-0"]
[WhiteElo "1934"]
[BlackElo "2267"]
[TimeControl "180+1"]
[EndTime "10:44:40 PDT"]
[Termination "Quiet_Desperation won by resignation"]

1. e4 {[%clk 0:03:00.9]} 1... c5 {[%clk 0:02:58.4]} 2. d4 {[%clk 0:02:58.9]}
2... cxd4 {[%clk 0:02:58.1]} 3. c3 {[%clk 0:02:59.1]} 3... Nf6 {[%clk
0:02:58.3]} 4. e5 {[%clk 0:02:58.8]} 4... Nd5 {[%clk 0:02:58.6]} 5. Nf3 {[%clk
0:02:59.2]} 5... Nc6 {[%clk 0:02:58.2]} 6. Bc4 {[%clk 0:02:59.2]} 6... Nb6
{[%clk 0:02:58.5]} 7. Bb3 {[%clk 0:02:59.1]} 7... d6 {[%clk 0:02:56.8]} 8. e6
{[%clk 0:02:57.5]} 8... Bxe6 {[%clk 0:02:32.9]} 9. Bxe6 {[%clk 0:02:56.4]} 9...
fxe6 {[%clk 0:02:33.8]} 10. O-O {[%clk 0:02:55.1]} 10... Qd7 {[%clk 0:02:23.1]}
11. cxd4 {[%clk 0:02:54.2]} 11... g6 {[%clk 0:02:11.8]} 12. Nc3 {[%clk
0:02:53.6]} 12... Bg7 {[%clk 0:02:11.6]} 13. d5 {[%clk 0:02:51.9]} 13... exd5
{[%clk 0:02:06.4]} 14. Nxd5 {[%clk 0:02:51.3]} 14... Nxd5 {[%clk 0:02:06.5]} 15.
Qxd5 {[%clk 0:02:50.7]} 15... e6 {[%clk 0:02:05]} 16. Qb3 {[%clk 0:02:50.2]}
16... O-O {[%clk 0:02:02.9]} 17. Ng5 {[%clk 0:02:49.8]} 17... Rae8 {[%clk
0:02:02]} 18. Re1 {[%clk 0:02:44]} 18... d5 {[%clk 0:02:00.5]} 19. Bd2 {[%clk
0:02:40.7]} 19... Nd4 {[%clk 0:01:58.6]} 20. Qd3 {[%clk 0:02:37.6]} 20... h6
{[%clk 0:01:50.5]} 21. Nh3 {[%clk 0:02:26.6]} 21... g5 {[%clk 0:01:49.6]} 22.
Rac1 {[%clk 0:02:17.2]} 22... Qf7 {[%clk 0:01:43.3]} 23. Be3 {[%clk 0:02:13.3]}
23... Nc6 {[%clk 0:01:39.9]} 24. Bc5 {[%clk 0:02:11.9]} 24... Bxb2 {[%clk
0:01:10.8]} 25. Rc2 {[%clk 0:02:00.6]} 25... Bg7 {[%clk 0:01:08]} 26. Bxf8
{[%clk 0:01:59.6]} 26... Qxf8 {[%clk 0:01:02.7]} 27. Rce2 {[%clk 0:01:50.6]}
27... Qd6 {[%clk 0:00:58.1]} 28. Qg6 {[%clk 0:01:49]} 28... Rf8 {[%clk
0:00:35.1]} 29. Rxe6 {[%clk 0:01:46.5]} 29... Qb4 {[%clk 0:00:29]} 30. Re8
{[%clk 0:01:43.1]} 30... Qc5 {[%clk 0:00:15.4]} 31. Rxf8+ {[%clk 0:01:41.3]}
31... Qxf8 {[%clk 0:00:15.5]} 32. Re8 {[%clk 0:01:40.5]} 1-0

[Event "*** SCC Grand Prix: Titled Tuesday Blitz"]
[Site "Chess.com"]
[Date "2020.06.09"]
[Round "9"]
[White "heartofatiger"]
[Black "VALPARAISO37"]
[Result "0-1"]
[WhiteElo "2578"]
[BlackElo "2426"]
[TimeControl "180+1"]
[EndTime "10:44:54 PDT"]
[Termination "VALPARAISO37 won by resignation"]

1. d4 {[%clk 0:03:00.1]} 1... Nf6 {[%clk 0:02:58.7]} 2. c4 {[%clk 0:03:00.1]}
2... e6 {[%clk 0:02:59]} 3. Nf3 {[%clk 0:03:00.6]} 3... d5 {[%clk 0:02:58.8]} 4.
g3 {[%clk 0:03:00.9]} 4... dxc4 {[%clk 0:02:58.1]} 5. Bg2 {[%clk 0:02:59.9]}
5... Nc6 {[%clk 0:02:58.5]} 6. Qa4 {[%clk 0:02:59]} 6... Bb4+ {[%clk 0:02:57.5]}
7. Bd2 {[%clk 0:02:58.8]} 7... Nd5 {[%clk 0:02:57.2]} 8. O-O {[%clk 0:02:52.1]}
8... Nb6 {[%clk 0:02:55.8]} 9. Qb5 {[%clk 0:02:43.9]} 9... a6 {[%clk 0:02:51.9]}
10. Qh5 {[%clk 0:02:43.3]} 10... Be7 {[%clk 0:02:46.1]} 11. e3 {[%clk
0:02:21.9]} 11... O-O {[%clk 0:02:43.4]} 12. a4 {[%clk 0:02:20.9]} 12... g6
{[%clk 0:02:24.5]} 13. Qh6 {[%clk 0:02:19.3]} 13... Re8 {[%clk 0:02:25.1]} 14.
a5 {[%clk 0:02:10.9]} 14... Nd7 {[%clk 0:02:23]} 15. Na3 {[%clk 0:02:03.8]}
15... Bf8 {[%clk 0:02:18]} 16. Qf4 {[%clk 0:02:01.2]} 16... e5 {[%clk
0:02:14.4]} 17. dxe5 {[%clk 0:01:59.4]} 17... Ndxe5 {[%clk 0:02:13.9]} 18. Nxe5
{[%clk 0:01:48.4]} 18... Nxe5 {[%clk 0:02:12.5]} 19. Rfd1 {[%clk 0:01:39.5]}
19... Qe7 {[%clk 0:01:58.9]} 20. Bc3 {[%clk 0:01:32.2]} 20... Bg7 {[%clk
0:01:57.3]} 21. Nxc4 {[%clk 0:01:18.9]} 21... Nxc4 {[%clk 0:01:42.2]} 22. Qxc4
{[%clk 0:01:19.8]} 22... Be6 {[%clk 0:01:37.7]} 23. Qf4 {[%clk 0:01:02.2]} 23...
c6 {[%clk 0:01:36.5]} 24. Bxg7 {[%clk 0:01:01.2]} 24... Kxg7 {[%clk 0:01:36.3]}
25. Rd6 {[%clk 0:00:57.2]} 25... Rad8 {[%clk 0:01:34.7]} 26. Rad1 {[%clk
0:00:56.2]} 26... Rxd6 {[%clk 0:01:34.8]} 27. Rxd6 {[%clk 0:00:52.8]} 27... Qf6
{[%clk 0:01:31.6]} 28. Qb4 {[%clk 0:00:44.8]} 28... Qe7 {[%clk 0:01:31.6]} 29.
Qd4+ {[%clk 0:00:42.3]} 29... Qf6 {[%clk 0:01:30.3]} 30. Qd2 {[%clk 0:00:39.8]}
30... Qe7 {[%clk 0:01:24]} 31. h3 {[%clk 0:00:40]} 31... Bd5 {[%clk 0:01:19.6]}
32. Qc2 {[%clk 0:00:33.9]} 32... Qxd6 {[%clk 0:01:17]} 0-1